{"text_format":"1","workbook":"xlsx","n_sheets":4,"sheets":["D_Assessment Data","D_Risk Plot","F_Assessment Data","F_Risk Plot"],"not_rendered":{"charts":2,"images":0,"macros":1,"external_links":0,"defined_names":0,"comments":0,"pivot_tables":0},"unopened":[],"bounds":{"document_bytes":16777216,"sheet_cells":100000,"rows_first":2000,"rows_last":500,"rows_between":2000,"halvings":0,"cell_chars":16384,"cell_head_chars":4096},"cells_cut":0,"cells_raw":0,"read":"whole","date_system":"1900"}

{"sheet":"D_Assessment Data","index":0,"n_rows":100,"n_cols":13,"rows_kept":100,"cut":false,"hidden":false,"merged":[[0,3,0,10]]}
[null,null,null,"Intermediate Variables"]
["Legal Structure ","Country",null,"Scale","Cross-Border Risk Exposure","Ease, Speed & Costs of Formation/ Registration","Attractiveness for Non-Resident Use","Quality & Accessibility of Basic Information","Quality & Accessibility of BO Information","Incidence in analyzed ML/TF cases","Existence of ML/TF Typologies","Overall Score","Ref Cell"]
[]
[]
[]
[]
[]
[]
[]
[null,null,null,null,null,null,null,null,null,null,null,null,1]
[null,null,null,null,null,null,null,null,null,null,null,null,1]
[null,null,null,null,null,null,null,null,null,null,null,null,1]
[null,null,null,null,null,null,null,null,null,null,null,null,1]
[null,null,null,null,null,null,null,null,null,null,null,null,1]
[null,null,null,null,null,null,null,null,null,null,null,null,1]
[null,null,null,null,null,null,null,null,null,null,null,null,1]
[null,null,null,null,null,null,null,null,null,null,null,null,1]
[null,null,null,null,null,null,null,null,null,null,null,null,1]
[null,null,null,null,null,null,null,null,null,null,null,null,1]
[null,null,null,null,null,null,null,null,null,null,null,null,1]
[null,null,null,null,null,null,null,null,null,null,null,null,1]
[null,null,null,null,null,null,null,null,null,null,null,null,1]
[null,null,null,null,null,null,null,null,null,null,null,null,1]
[null,null,null,null,null,null,null,null,null,null,null,null,1]
[null,null,null,null,null,null,null,null,null,null,null,null,1]
[null,null,null,null,null,null,null,null,null,null,null,null,1]
[null,null,null,null,null,null,null,null,null,null,null,null,1]
[null,null,null,null,null,null,null,null,null,null,null,null,1]
[null,null,null,null,null,null,null,null,null,null,null,null,1]
[null,null,null,null,null,null,null,null,null,null,null,null,1]
[null,null,null,null,null,null,null,null,null,null,null,null,1]
[null,null,null,null,null,null,null,null,null,null,null,null,1]
[null,null,null,null,null,null,null,null,null,null,null,null,1]
[null,null,null,null,null,null,null,null,null,null,null,null,1]
[null,null,null,null,null,null,null,null,null,null,null,null,1]
[null,null,null,null,null,null,null,null,null,null,null,null,1]
[null,null,null,null,null,null,null,null,null,null,null,null,1]
[null,null,null,null,null,null,null,null,null,null,null,null,1]
[null,null,null,null,null,null,null,null,null,null,null,null,1]
[null,null,null,null,null,null,null,null,null,null,null,null,1]
[null,null,null,null,null,null,null,null,null,null,null,null,1]
[null,null,null,null,null,null,null,null,null,null,null,null,1]
[null,null,null,null,null,null,null,null,null,null,null,null,1]
[null,null,null,null,null,null,null,null,null,null,null,null,1]
[null,null,null,null,null,null,null,null,null,null,null,null,1]
[null,null,null,null,null,null,null,null,null,null,null,null,1]
[null,null,null,null,null,null,null,null,null,null,null,null,1]
[null,null,null,null,null,null,null,null,null,null,null,null,1]
[null,null,null,null,null,null,null,null,null,null,null,null,1]
[null,null,null,null,null,null,null,null,null,null,null,null,1]
[null,null,null,null,null,null,null,null,null,null,null,null,1]
[null,null,null,null,null,null,null,null,null,null,null,null,1]
[null,null,null,null,null,null,null,null,null,null,null,null,1]
[null,null,null,null,null,null,null,null,null,null,null,null,1]
[null,null,null,null,null,null,null,null,null,null,null,null,1]
[null,null,null,null,null,null,null,null,null,null,null,null,1]
[null,null,null,null,null,null,null,null,null,null,null,null,1]
[null,null,null,null,null,null,null,null,null,null,null,null,1]
[null,null,null,null,null,null,null,null,null,null,null,null,1]
[null,null,null,null,null,null,null,null,null,null,null,null,1]
[null,null,null,null,null,null,null,null,null,null,null,null,1]
[null,null,null,null,null,null,null,null,null,null,null,null,1]
[null,null,null,null,null,null,null,null,null,null,null,null,1]
[null,null,null,null,null,null,null,null,null,null,null,null,1]
[null,null,null,null,null,null,null,null,null,null,null,null,1]
[null,null,null,null,null,null,null,null,null,null,null,null,1]
[null,null,null,null,null,null,null,null,null,null,null,null,1]
[null,null,null,null,null,null,null,null,null,null,null,null,1]
[null,null,null,null,null,null,null,null,null,null,null,null,1]
[null,null,null,null,null,null,null,null,null,null,null,null,1]
[null,null,null,null,null,null,null,null,null,null,null,null,1]
[null,null,null,null,null,null,null,null,null,null,null,null,1]
[null,null,null,null,null,null,null,null,null,null,null,null,1]
[null,null,null,null,null,null,null,null,null,null,null,null,1]
[null,null,null,null,null,null,null,null,null,null,null,null,1]
[null,null,null,null,null,null,null,null,null,null,null,null,1]
[null,null,null,null,null,null,null,null,null,null,null,null,1]
[null,null,null,null,null,null,null,null,null,null,null,null,1]
[null,null,null,null,null,null,null,null,null,null,null,null,1]
[null,null,null,null,null,null,null,null,null,null,null,null,1]
[null,null,null,null,null,null,null,null,null,null,null,null,1]
[null,null,null,null,null,null,null,null,null,null,null,null,1]
[null,null,null,null,null,null,null,null,null,null,null,null,1]
[null,null,null,null,null,null,null,null,null,null,null,null,1]
[null,null,null,null,null,null,null,null,null,null,null,null,1]
[null,null,null,null,null,null,null,null,null,null,null,null,1]
[null,null,null,null,null,null,null,null,null,null,null,null,1]
[null,null,null,null,null,null,null,null,null,null,null,null,1]
[null,null,null,null,null,null,null,null,null,null,null,null,1]
[null,null,null,null,null,null,null,null,null,null,null,null,1]
[null,null,null,null,null,null,null,null,null,null,null,null,1]
[null,null,null,null,null,null,null,null,null,null,null,null,1]
[null,null,null,null,null,null,null,null,null,null,null,null,1]
[null,null,null,null,null,null,null,null,null,null,null,null,1]
[null,null,null,null,null,null,null,null,null,null,null,null,1]
[null,null,null,null,null,null,null,null,null,null,null,null,1]
[null,null,null,null,null,null,null,null,null,null,null,null,1]
[null,null,null,null,null,null,null,null,null,null,null,null,1]
[null,null,null,null,null,null,null,null,null,null,null,null,1]
[null,null,null,null,null,null,null,null,null,null,null,null,1]

{"sheet":"D_Risk Plot","index":1,"n_rows":22,"n_cols":4,"rows_kept":22,"cut":false,"hidden":false,"merged":[]}
[]
[null,"Legal Structure","Risk Scores","Scale"]
[1,{"$f":"'D_Assessment Data'!A3","v":0},{"$f":"'D_Assessment Data'!L3","v":0},{"$f":"'D_Assessment Data'!D3","v":0}]
[2,{"$f":"'D_Assessment Data'!A4","v":0},{"$f":"'D_Assessment Data'!L4","v":0},{"$f":"'D_Assessment Data'!D4","v":0}]
[3,{"$f":"'D_Assessment Data'!A5","v":0},{"$f":"'D_Assessment Data'!L5","v":0},{"$f":"'D_Assessment Data'!D5","v":0}]
[4,{"$f":"'D_Assessment Data'!A6","v":0},{"$f":"'D_Assessment Data'!L6","v":0},{"$f":"'D_Assessment Data'!D6","v":0}]
[5,{"$f":"'D_Assessment Data'!A7","v":0},{"$f":"'D_Assessment Data'!L7","v":0},{"$f":"'D_Assessment Data'!D7","v":0}]
[6,{"$f":"'D_Assessment Data'!A8","v":0},{"$f":"'D_Assessment Data'!L8","v":0},{"$f":"'D_Assessment Data'!D8","v":0}]
[7,{"$f":"'D_Assessment Data'!A9","v":0},{"$f":"'D_Assessment Data'!L9","v":0},{"$f":"'D_Assessment Data'!D9","v":0}]
[8,{"$f":"'D_Assessment Data'!A10","v":0},{"$f":"'D_Assessment Data'!L10","v":0},{"$f":"'D_Assessment Data'!D10","v":0}]
[9,{"$f":"'D_Assessment Data'!A11","v":0},{"$f":"'D_Assessment Data'!L11","v":0},{"$f":"'D_Assessment Data'!D11","v":0}]
[10,{"$f":"'D_Assessment Data'!A12","v":0},{"$f":"'D_Assessment Data'!L12","v":0},{"$f":"'D_Assessment Data'!D12","v":0}]
[11,{"$f":"'D_Assessment Data'!A13","v":0},{"$f":"'D_Assessment Data'!L13","v":0},{"$f":"'D_Assessment Data'!D13","v":0}]
[12,{"$f":"'D_Assessment Data'!A14","v":0},{"$f":"'D_Assessment Data'!L14","v":0},{"$f":"'D_Assessment Data'!D14","v":0}]
[13,{"$f":"'D_Assessment Data'!A15","v":0},{"$f":"'D_Assessment Data'!L15","v":0},{"$f":"'D_Assessment Data'!D15","v":0}]
[14,{"$f":"'D_Assessment Data'!A16","v":0},{"$f":"'D_Assessment Data'!L16","v":0},{"$f":"'D_Assessment Data'!D16","v":0}]
[15,{"$f":"'D_Assessment Data'!A17","v":0},{"$f":"'D_Assessment Data'!L17","v":0},{"$f":"'D_Assessment Data'!D17","v":0}]
[16,{"$f":"'D_Assessment Data'!A18","v":0},{"$f":"'D_Assessment Data'!L18","v":0},{"$f":"'D_Assessment Data'!D18","v":0}]
[17,{"$f":"'D_Assessment Data'!A19","v":0},{"$f":"'D_Assessment Data'!L19","v":0},{"$f":"'D_Assessment Data'!D19","v":0}]
[18,{"$f":"'D_Assessment Data'!A20","v":0},{"$f":"'D_Assessment Data'!L20","v":0},{"$f":"'D_Assessment Data'!D20","v":0}]
[19,{"$f":"'D_Assessment Data'!A21","v":0},{"$f":"'D_Assessment Data'!L21","v":0},{"$f":"'D_Assessment Data'!D21","v":0}]
[20,{"$f":"'D_Assessment Data'!A22","v":0},{"$f":"'D_Assessment Data'!L22","v":0},{"$f":"'D_Assessment Data'!D22","v":0}]

{"sheet":"F_Assessment Data","index":2,"n_rows":2,"n_cols":13,"rows_kept":2,"cut":false,"hidden":false,"merged":[[0,4,0,11]]}
[null,null,null,null,"Intermediate Variables"]
["Legal Structure ","Country",null,null,"Scale","Cross-Border Risk Exposure","Ease, Speed & Costs of Formation/Registration","Attractiveness for Non-Resident Use","Quality & Accessibility of Basic Information","Quality & Accessibility of BO Information","Incidence in analyzed ML/TF cases","Existence of ML/TF Typologies","Overall Score"]

{"sheet":"F_Risk Plot","index":3,"n_rows":22,"n_cols":4,"rows_kept":22,"cut":false,"hidden":false,"merged":[]}
[]
[null,"Legal Structure","Risk Scores","Scale"]
[1,{"$f":"('F_Assessment Data'!A3&\" \"&'F_Assessment Data'!B3)","v":" "},{"$f":"'F_Assessment Data'!M3","v":0},{"$f":"'F_Assessment Data'!E3","v":0}]
[2,{"$f":"('F_Assessment Data'!A4&\" \"&'F_Assessment Data'!B4)","v":" "},{"$f":"'F_Assessment Data'!M4","v":0},{"$f":"'F_Assessment Data'!E4","v":0}]
[3,{"$f":"('F_Assessment Data'!A5&\" \"&'F_Assessment Data'!B5)","v":" "},{"$f":"'F_Assessment Data'!M5","v":0},{"$f":"'F_Assessment Data'!E5","v":0}]
[4,{"$f":"('F_Assessment Data'!A6&\" \"&'F_Assessment Data'!B6)","v":" "},{"$f":"'F_Assessment Data'!M6","v":0},{"$f":"'F_Assessment Data'!E6","v":0}]
[5,{"$f":"('F_Assessment Data'!A7&\" \"&'F_Assessment Data'!B7)","v":" "},{"$f":"'F_Assessment Data'!M7","v":0},{"$f":"'F_Assessment Data'!E7","v":0}]
[6,{"$f":"('F_Assessment Data'!A8&\" \"&'F_Assessment Data'!B8)","v":" "},{"$f":"'F_Assessment Data'!M8","v":0},{"$f":"'F_Assessment Data'!E8","v":0}]
[7,{"$f":"('F_Assessment Data'!A9&\" \"&'F_Assessment Data'!B9)","v":" "},{"$f":"'F_Assessment Data'!M9","v":0},{"$f":"'F_Assessment Data'!E9","v":0}]
[8,{"$f":"('F_Assessment Data'!A10&\" \"&'F_Assessment Data'!B10)","v":" "},{"$f":"'F_Assessment Data'!M10","v":0},{"$f":"'F_Assessment Data'!E10","v":0}]
[9,{"$f":"('F_Assessment Data'!A11&\" \"&'F_Assessment Data'!B11)","v":" "},{"$f":"'F_Assessment Data'!M11","v":0},{"$f":"'F_Assessment Data'!E11","v":0}]
[10,{"$f":"('F_Assessment Data'!A12&\" \"&'F_Assessment Data'!B12)","v":" "},{"$f":"'F_Assessment Data'!M12","v":0},{"$f":"'F_Assessment Data'!E12","v":0}]
[11,{"$f":"('F_Assessment Data'!A13&\" \"&'F_Assessment Data'!B13)","v":" "},{"$f":"'F_Assessment Data'!M13","v":0},{"$f":"'F_Assessment Data'!E13","v":0}]
[12,{"$f":"('F_Assessment Data'!A14&\" \"&'F_Assessment Data'!B14)","v":" "},{"$f":"'F_Assessment Data'!M14","v":0},{"$f":"'F_Assessment Data'!E14","v":0}]
[13,{"$f":"('F_Assessment Data'!A15&\" \"&'F_Assessment Data'!B15)","v":" "},{"$f":"'F_Assessment Data'!M15","v":0},{"$f":"'F_Assessment Data'!E15","v":0}]
[14,{"$f":"('F_Assessment Data'!A16&\" \"&'F_Assessment Data'!B16)","v":" "},{"$f":"'F_Assessment Data'!M16","v":0},{"$f":"'F_Assessment Data'!E16","v":0}]
[15,{"$f":"('F_Assessment Data'!A17&\" \"&'F_Assessment Data'!B17)","v":" "},{"$f":"'F_Assessment Data'!M17","v":0},{"$f":"'F_Assessment Data'!E17","v":0}]
[16,{"$f":"('F_Assessment Data'!A18&\" \"&'F_Assessment Data'!B18)","v":" "},{"$f":"'F_Assessment Data'!M18","v":0},{"$f":"'F_Assessment Data'!E18","v":0}]
[17,{"$f":"('F_Assessment Data'!A19&\" \"&'F_Assessment Data'!B19)","v":" "},{"$f":"'F_Assessment Data'!M19","v":0},{"$f":"'F_Assessment Data'!E19","v":0}]
[18,{"$f":"('F_Assessment Data'!A20&\" \"&'F_Assessment Data'!B20)","v":" "},{"$f":"'F_Assessment Data'!M20","v":0},{"$f":"'F_Assessment Data'!E20","v":0}]
[19,{"$f":"('F_Assessment Data'!A21&\" \"&'F_Assessment Data'!B21)","v":" "},{"$f":"'F_Assessment Data'!M21","v":0},{"$f":"'F_Assessment Data'!E21","v":0}]
[20,{"$f":"('F_Assessment Data'!A22&\" \"&'F_Assessment Data'!B22)","v":" "},{"$f":"'F_Assessment Data'!M22","v":0},{"$f":"'F_Assessment Data'!E22","v":0}]